bitfinex-derivatives/quotes_SOLF0:USTF0_20250202
["timestamp","ask_amount","ask_price","bid_price","bid_amount"]
[1738531808977,50.5799616,201.78,201.59,41.2577616]
[1738531809373,4.9579,201.75,201.59,41.2577616]
[1738531809577,9.3222,201.78,201.59,41.2577616]
[1738531809975,0.03576817,201.71,201.66,0.03297934]
[1738531810777,6.2474,201.78,201.66,0.03297934]
[1738531810983,54.01003554,201.9,201.67,41.2577616]
[1738531811275,4.9558,201.84,201.75,4.9578]
[1738531811777,9.1073,201.89,201.67,41.2577616]
[1738531811982,9.1073,201.89,201.75,41.2577616]
[1738531812179,41.2577616,201.96,201.77,0.03553258]
[1738531812376,4.953,201.95,201.86,4.9551]
[1738531812580,45.8377616,202.0,201.83,41.2577616]
[1738531812777,4.58,202.0,201.83,41.2577616]
[1738531812973,4.9514,202.02,201.91,4.9539]
[1738531813177,12.173,202.06,201.74,41.2577616]
[1738531813178,5.9902,202.06,201.87,41.2577616]
[1738531813476,0.03739219,201.99,201.95,41.2577616]
[1738531813784,9.219e-05,201.99,201.95,41.2577616]
[1738531814084,52.81488468,202.1,201.95,41.2577616]
[1738531814382,52.81488468,202.1,202.01,41.2577616]
[1738531814578,3.1873,202.19,202.07,4.9498]
[1738531814774,3.1873,202.19,202.01,41.2577616]
[1738531814974,5.095e-05,202.08,202.03,0.03565641]
[1738531815180,5.095e-05,202.08,202.06,4.9501]
[1738531815377,6.0051,202.23,202.05,41.2577616]
[1738531815679,6.0051,202.23,202.1,41.2577616]
[1738531815879,6.0051,202.23,202.02,41.2577616]
[1738531816080,41.2577616,202.18,201.96,41.2577616]
[1738531816281,4.9479,202.16,202.04,4.9505]
[1738531816482,41.2577616,202.18,201.96,41.2577616]
[1738531816682,0.03710302,202.12,202.08,0.03295497]
[1738531817283,0.03710302,202.12,202.08,0.56651064]
[1738531817485,4.9495,202.09,202.08,0.56651064]
[1738531817682,0.03710302,202.12,202.08,0.56651064]
[1738531817882,4.9491,202.11,202.08,0.56651064]
[1738531818080,0.03710302,202.12,202.08,0.56651064]
[1738531818685,0.03710302,202.12,202.08,0.59869027]
[1738531819283,4.9493,202.1,202.08,3.63869027]
[1738531819791,4.9494,202.1,202.08,3.63869027]
[1738531819990,41.29486462,202.12,202.07,3.95]
[1738531820190,41.2577616,202.08,201.96,14.63]
[1738531820389,41.29486462,202.12,201.96,14.63]
[1738531820593,3.0744,202.17,201.96,14.63]
[1738531820790,4.9503,202.06,201.96,19.5826]
[1738531820987,41.2577616,202.1,201.96,14.63]
[1738531821192,0.03776376,202.03,201.99,0.03323145]
[1738531821491,0.03776376,202.03,201.99,3.99323145]
[1738531821887,4.9516,202.01,201.99,3.99323145]
[1738531823191,0.03776376,202.03,201.99,3.99323145]
[1738531823691,0.03776376,202.03,201.99,16.36323145]
[1738531823692,4.9515,202.01,201.99,16.36323145]
[1738531823994,41.2577616,202.02,201.96,31.19]
[1738531824192,4.9524,201.97,201.96,31.19]
[1738531824595,4.9524,201.97,201.96,13.1315]
[1738531824888,4.9524,201.97,201.96,0.8342]
[1738531825086,41.2577616,201.98,201.94,1.308e-05]
[1738531825284,41.2577616,201.95,201.93,13.45]
[1738531825493,4.9553,201.86,201.78,4.9569]
[1738531825792,41.2577616,201.95,201.78,14.58]
[1738531826187,41.2577616,201.95,201.78,31.44]
[1738531826387,41.2577616,201.91,201.78,31.44]
[1738531826694,0.03521429,201.89,201.84,0.0378211]
[1738531827491,4.9552,201.86,201.84,0.0378211]
[1738531828400,0.03521429,201.89,201.84,0.0378211]
[1738531829093,31.82980286,202.15,201.87,41.2577616]
[1738531829293,31.82980286,202.15,202.02,41.2577616]
[1738531829492,31.82980286,202.15,202.03,6.1964]
[1738531829797,20.04508567,202.15,202.03,9.1019]
[1738531830299,0.033833,202.11,202.07,0.03687485]
[1738531830796,20.04508567,202.15,202.1,4.9492]
[1738531831194,20.04508567,202.15,202.07,0.03687485]
[1738531831596,41.2577616,202.29,202.07,0.03687485]
[1738531831796,41.2577616,202.25,202.07,0.03687485]
[1738531831999,0.03135575,202.2,202.03,9.1019]
[1738531832292,41.2577616,202.29,202.14,0.03610263]
[1738531832497,0.03328128,202.14,202.06,41.2577616]
[1738531832698,0.88603488,202.28,202.06,41.2577616]
[1738531832893,0.03543148,202.12,202.08,0.03423509]
[1738531833090,0.88603488,202.28,202.1,41.2577616]
[1738531833292,41.2577616,202.29,202.1,41.2577616]
[1738531834105,41.2577616,202.29,202.06,41.2577616]
[1738531834297,0.03792477,202.22,202.17,0.03210579]
[1738531834496,4.9466,202.21,202.17,0.03210579]
[1738531834799,0.03792477,202.22,202.17,0.03210579]
[1738531835198,4.98432477,202.22,202.17,0.03210579]
[1738531835500,0.03792477,202.22,202.17,0.03210579]
[1738531836095,4.9473,202.18,202.17,0.03210579]
[1738531836396,0.03792477,202.22,202.17,0.03210579]
[1738531837290,0.03792477,202.22,202.17,4.97960579]
[1738531837595,0.03792477,202.22,202.17,0.03210579]
[1738531837796,41.2577616,202.37,202.17,0.03210579]
[1738531837992,0.88797282,202.36,202.18,41.2577616]
[1738531838193,41.2577616,202.42,202.22,41.2577616]
[1738531838500,41.2577616,202.46,202.26,41.2577616]
[1738531838692,4.9416,202.42,202.33,4.9436]
[1738531838895,41.2577616,202.42,202.27,2.9011]
[1738531839205,0.03628535,202.38,202.34,0.03677326]
[1738531839798,41.2577616,202.43,202.27,19.8511]
[1738531839998,0.03388055,202.38,202.34,0.03534334]
[1738531840299,41.2577616,202.43,202.27,19.8511]
[1738531840501,4.9437,202.33,202.27,16.95]
[1738531840699,0.03163831,202.38,202.27,16.95]
[1738531840901,41.2577616,202.43,202.33,0.03296306]
[1738531841097,41.2577616,202.47,202.33,0.03296306]
[1738531841300,0.03545812,202.35,202.27,16.95]
[1738531841499,41.2577616,202.43,202.27,16.95]
[1738531841701,41.2577616,202.43,202.38,0.03538336]
[1738531842002,4.96,202.46,202.3,41.2577616]
[1738531842205,0.03678515,202.43,202.38,0.03309421]
[1738531842703,4.9418,202.41,202.38,0.03309421]
[1738531843002,41.29454675,202.43,202.38,0.03309421]
[1738531843501,41.2577616,202.39,202.27,16.95]
[1738531844804,0.03230145,202.35,202.31,0.03311775]
[1738531845204,41.2577616,202.43,202.27,16.95]
[1738531845400,0.03208633,202.35,202.31,0.03330298]
[1738531845603,4.9438,202.32,202.31,0.03330298]
[1738531848501,0.03208633,202.35,202.31,0.03330298]
[1738531848901,4.97538633,202.35,202.31,0.03330298]
[1738531849104,41.28984793,202.35,202.31,0.03330298]
[1738531849307,4.96,202.34,202.31,0.03330298]
[1738531849615,4.9438,202.32,202.31,0.03330298]
[1738531850716,0.03208633,202.35,202.31,0.03330298]
[1738531852416,41.2577616,202.47,202.31,0.03330298]
[1738531852809,0.8888068,202.46,202.28,5.8663]
[1738531853219,4.9436,202.33,202.28,5.8663]
[1738531853409,41.2577616,202.43,202.28,5.8663]
[1738531853711,41.2577616,202.43,202.28,5.90049976]
[1738531853911,4.9431,202.35,202.33,0.03790681]
[1738531854311,4.9431,202.35,202.33,32.68790681]
[1738531854511,4.9434,202.34,202.33,32.68790681]
[1738531854818,41.2577616,202.35,202.11,41.2577616]
[1738531855118,41.2577616,202.35,202.16,3.0555]
[1738531855819,41.2577616,202.31,202.16,3.0555]
[1738531856021,0.03129725,202.28,202.23,0.0353629]
[1738531856919,4.9458,202.24,202.23,0.0353629]
[1738531857117,4.9458,202.24,202.23,3.9853629]
[1738531857618,0.03129725,202.28,202.23,3.9853629]
[1738531858016,4.9453,202.27,202.23,3.9853629]
[1738531858521,0.03129725,202.28,202.23,3.9853629]
[1738531859120,41.2577616,202.39,202.23,3.9853629]
[1738531859317,4.9433,202.35,202.23,3.9853629]
[1738531859621,41.2577616,202.39,202.23,3.95]
[1738531860018,0.03716429,202.33,202.29,0.03403067]
[1738531860523,4.9443,202.3,202.29,0.03403067]
[1738531861417,0.03716429,202.33,202.29,0.03403067]
[1738531861418,4.944,202.32,202.29,0.03403067]
[1738531861613,0.03716429,202.33,202.29,0.03403067]
[1738531862623,139.1577616,202.43,202.29,0.03403067]
[1738531863023,41.2577616,202.35,202.23,3.95]
[1738531863424,41.2577616,202.39,202.23,3.95]
[1738531863627,0.03624862,202.31,202.27,0.03288097]
[1738531863924,139.1577616,202.43,202.23,3.95]
[1738531864125,41.2577616,202.39,202.23,3.95]
[1738531864329,4.9431,202.36,202.23,3.95]
[1738531864628,41.2577616,202.39,202.23,3.95]
[1738531865031,0.03388434,202.33,202.29,0.03708918]
[1738531865427,41.2577616,202.31,202.23,3.95]
[1738531865934,4.9457,202.25,202.23,3.95]
[1738531866622,4.9457,202.25,202.23,3.8933]
[1738531867025,0.03436187,202.26,202.16,21.07]
[1738531867224,0.03436187,202.26,202.04,12.1352]
[1738531867225,41.2577616,202.17,202.04,12.1352]
[1738531867425,41.2577616,202.13,202.01,53.27308539]
[1738531867630,46.0577616,202.13,202.01,53.27308539]
[1738531867824,4.9497,202.09,202.01,53.27308539]
[1738531868326,0.034819,202.07,202.03,0.03645232]
[1738531868636,4.8,202.16,202.03,12.79]
[1738531868823,41.2577616,202.12,202.03,12.79]
[1738531869126,0.03191112,202.07,202.03,12.82288105]
[1738531869529,41.2577616,202.04,202.01,2.86]
[1738531869933,4.9506,202.05,202.01,2.86]
[1738531870130,0.03191112,202.07,202.01,2.86]
[1738531870835,0.03191112,202.07,202.02,0.03500704]
[1738531871234,0.7924088,202.18,202.02,0.03500704]
[1738531871443,78.47676632,202.28,202.16,41.2577616]
[1738531871737,7.6217883,202.25,202.2,41.2577616]
[1738531871930,78.47676632,202.28,202.24,4.9458]
[1738531872136,7.80554154,202.27,202.2,41.2577616]
[1738531872436,7.80554154,202.27,202.17,9.3944]
[1738531872632,0.03605267,202.26,202.21,0.03783766]
[1738531872831,29.59432206,202.36,202.24,41.2577616]
[1738531873032,29.59432206,202.36,202.28,41.2577616]
[1738531873237,29.59432206,202.36,202.24,41.2577616]
[1738531873438,29.59432206,202.36,202.2,41.2577616]
[1738531873641,41.2577616,202.44,202.2,41.2577616]
[1738531874036,0.0367607,202.33,202.29,0.0359723]
[1738531874442,44.1983616,202.48,202.27,41.2577616]
[1738531874645,2.9406,202.48,202.31,41.2577616]
[1738531874946,5.9343,202.53,202.35,41.2577616]
[1738531875147,41.2577616,202.44,202.25,41.2577616]
[1738531875344,4.88,202.46,202.17,9.3944]
[1738531875345,41.2577616,202.4,202.17,9.3944]
[1738531875538,41.2577616,202.4,202.2,41.2577616]
[1738531875846,9.679e-05,202.31,202.26,0.03176123]
[1738531876047,44.1983616,202.52,202.28,41.2577616]
[1738531876245,44.1983616,202.52,202.36,4.9427]
[1738531876546,44.1983616,202.52,202.34,41.2577616]
[1738531876748,44.1983616,202.52,202.36,4.9428]
[1738531876749,4.9403,202.47,202.36,4.9428]
[1738531876942,4.9403,202.47,202.3,41.2577616]
[1738531877244,2.9406,202.52,202.34,41.2577616]
[1738531877445,7.8797,202.52,202.4,4.9417]
[1738531877744,2.9406,202.52,202.38,41.2577616]
[1738531877946,18.09821386,202.61,202.42,41.2577616]
[1738531877947,3.1483,202.58,202.42,41.2577616]
[1738531878547,8.0859,202.58,202.46,4.9403]
[1738531878741,0.03604791,202.52,202.47,0.03362797]
[1738531880042,41.29380951,202.52,202.47,0.03362797]
[1738531880250,46.13380951,202.52,202.3,6.0131]
[1738531880550,46.13380951,202.52,202.31,3.1884]
[1738531880749,4.9405,202.46,202.35,4.943]
[1738531881050,4.84,202.52,202.38,41.2577616]
[1738531881556,0.035579,202.47,202.43,0.03499944]
[1738531881850,3.1483,202.58,202.43,0.03499944]
[1738531882042,3.1483,202.58,202.43,3.1884]
[1738531882241,3.1483,202.58,202.51,4.9391]
[1738531882548,3.1483,202.58,202.43,3.1884]
[1738531882747,4.938,202.56,202.51,0.9]
[1738531883246,0.03488811,202.53,202.51,0.9]
[1738531883843,4.97378811,202.53,202.51,0.9]
[1738531884149,0.03488811,202.53,202.51,0.9]
[1738531884953,0.03488811,202.53,202.51,5.8392]
[1738531885144,0.03488811,202.53,202.51,0.9]
[1738531885543,0.79061972,202.66,202.51,0.9]
[1738531885544,41.2577616,202.68,202.51,0.9]
[1738531885855,41.2577616,202.76,202.58,41.2577616]
[1738531886046,4.9339,202.71,202.61,4.9361]
[1738531886352,41.2577616,202.76,202.59,2.9371]
[1738531886547,44.2137616,202.8,202.59,2.9371]
[1738531886753,4.9321,202.79,202.7,4.9341]
[1738531886951,0.03548782,202.7,202.65,0.03751662]
[1738531887151,0.03548782,202.7,202.68,4.9345]
[1738531887456,2.956,202.8,202.62,41.2577616]
[1738531887649,0.03541354,202.71,202.67,0.03181602]
[1738531888257,41.2577616,202.72,202.6,3.1003]
[1738531888457,41.2577616,202.72,202.51,0.9]
[1738531888458,41.2577616,202.68,202.51,0.9]
[1738531888653,41.2577616,202.68,202.51,3.8371]
[1738531889053,2.956,202.67,202.51,3.8371]
[1738531889454,4.9365,202.61,202.51,0.9]
[1738531889654,41.2577616,202.64,202.51,0.9]
[1738531889854,0.03358429,202.61,202.57,0.03159006]
[1738531891751,3.0213,202.72,202.57,0.03159006]
[1738531892155,3.0213,202.72,202.53,41.2577616]
[1738531892156,44.2790616,202.72,202.53,41.2577616]
[1738531892356,41.2577616,202.68,202.52,2.9916]
[1738531892557,4.9362,202.62,202.52,4.9416]
[1738531892855,2.9556,202.67,202.52,4.9416]
[1738531893056,0.03513816,202.59,202.55,0.03647456]
[1738531894560,41.2577616,202.77,202.57,41.2577616]
[1738531894766,2.968,202.8,202.61,41.2577616]
[1738531895058,41.2577616,202.89,202.66,41.2577616]
[1738531895255,12.84680546,202.88,202.67,2.9786]
[1738531895458,11.9498,202.88,202.67,2.9786]
[1738531895653,11.9498,202.88,202.7,41.2577616]
[1738531895859,0.03189013,202.8,202.75,0.03229859]
[1738531896362,0.03189013,202.8,202.74,41.2577616]
[1738531896562,7.6827,202.96,202.78,41.2577616]
[1738531896761,3.01,202.95,202.78,41.2577616]
[1738531896961,3.01,202.95,202.79,2.9786]
[1738531897354,41.2577616,202.99,202.79,2.9786]
[1738531897355,4.927,203.0,202.82,41.2577616]
[1738531897554,4.76,203.02,202.82,41.2577616]
[1738531897758,0.89688482,203.01,202.82,41.2577616]
[1738531897957,0.03609542,202.93,202.89,0.03784752]
[1738531898354,44.2677616,203.03,202.82,41.2577616]
[1738531898657,4.9269,203.0,202.82,41.2577616]
[1738531898863,0.03286639,202.93,202.89,0.03137302]
[1738531899359,41.2577616,203.11,202.9,41.2577616]
[1738531899557,3.94479495,203.1,202.91,2.9794]
[1738531899863,4.9265,203.02,202.91,2.9794]
[1738531900456,41.2577616,203.07,202.91,2.9794]
[1738531900858,41.2577616,203.07,202.94,0.03244107]
[1738531901459,41.2577616,202.99,202.78,44.1759616]
[1738531901662,41.2577616,202.99,202.78,2.9182]
[1738531901663,4.9296,202.89,202.78,2.9182]
[1738531901863,41.2577616,202.95,202.78,2.9182]
[1738531902062,41.2577616,202.95,202.86,0.03433548]
[1738531902263,4.9288,202.92,202.86,0.03433548]
[1738531902462,11.8458,202.98,202.86,0.03433548]
[1738531902660,4.72,203.03,202.86,0.03433548]
[1738531902859,4.72,203.03,202.89,41.2577616]
[1738531903368,41.2577616,203.07,202.9,2.9182]
[1738531903560,41.2577616,203.07,202.94,0.03464096]
[1738531903761,4.9277,202.97,202.94,0.03464096]
[1738531903967,41.2577616,203.07,202.9,2.9182]
[1738531904359,0.89659031,203.06,202.93,0.03354188]
[1738531904759,0.89659031,203.06,202.78,2.9866]
[1738531904760,41.2577616,203.03,202.81,41.2577616]
[1738531904966,0.89663746,203.02,202.81,41.2577616]
[1738531905161,0.89663746,203.02,202.97,0.0335186]
[1738531905369,3.0374,203.01,202.81,41.2577616]
[1738531905669,3.0374,203.01,202.89,41.2577616]
[1738531906061,8.8125,203.12,202.93,41.2577616]
[1738531906268,3.93386912,203.11,202.93,41.2577616]
[1738531906470,41.2577616,203.08,202.89,41.2577616]
[1738531906671,0.03695679,203.05,203.0,0.03167631]
[1738531908864,4.9266,203.01,203.0,0.93167631]
[1738531909068,0.03695679,203.05,202.76,97.6]
[1738531909069,41.29471839,203.05,202.85,41.2577616]
[1738531909267,41.29471839,203.05,202.81,41.2577616]
[1738531909569,41.2577616,203.01,202.81,41.2577616]
[1738531909768,7.8151,203.0,202.81,41.2577616]
[1738531910369,0.03777055,202.93,202.88,0.03713344]
[1738531910769,0.03777055,202.93,202.78,2.9854]
[1738531910770,0.03777055,202.93,202.73,41.2577616]
[1738531910966,4.9298,202.88,202.77,41.2577616]
[1738531911167,14.1156,203.0,202.77,41.2577616]
[1738531911363,0.89706857,202.99,202.81,41.2577616]
[1738531911772,4.9284,202.94,202.81,41.2577616]
[1738531911968,14.1156,203.0,202.81,41.2577616]
[1738531912165,0.03138272,202.92,202.88,0.03565472]
[1738531912468,0.03138272,202.92,202.72,41.2577616]
[1738531912774,4.9314,202.82,202.72,41.2577616]
[1738531912971,41.2577616,202.93,202.72,41.2577616]
[1738531913167,0.89669247,202.92,202.72,41.2577616]
[1738531913567,41.2577616,202.89,202.68,41.2577616]
[1738531913770,0.03214924,202.84,202.8,0.03304803]
[1738531914371,4.9314,202.81,202.8,0.03304803]
[1738531914575,0.03214924,202.84,202.8,0.03304803]
[1738531915575,4.931,202.83,202.8,0.03304803]
[1738531915775,0.03214924,202.84,202.8,0.03304803]
[1738531916177,0.03214924,202.84,202.8,41.29080963]
[1738531916769,0.03214924,202.84,202.8,43.25080963]
[1738531917173,4.66,202.93,202.8,43.25080963]
[1738531917378,4.9295,202.89,202.8,43.25080963]
[1738531917575,3.0354,203.0,202.84,41.2577616]
[1738531917875,3.0354,203.0,202.8,43.2177616]
[1738531918579,0.03366373,202.92,202.88,0.03139842]
[1738531919779,46.40359724,203.11,202.88,41.28916002]
[1738531919974,5.51659255,203.1,202.89,2.9755]
[1738531920176,41.2577616,203.03,202.81,5.8502]
[1738531920377,2.8747,203.02,202.84,41.2577616]
[1738531920573,4.9268,203.0,202.88,41.2577616]
[1738531920878,2.8747,203.02,202.88,41.2577616]
[1738531921178,0.03204304,202.96,202.92,0.03608071]
[1738531922073,5.8297,203.11,202.92,41.29384231]
[1738531922279,2.8747,203.16,203.02,41.2577616]
[1738531922477,2.8747,203.16,202.95,41.2577616]
[1738531922478,4.62,203.27,203.06,41.2577616]
[1738531922677,4.62,203.27,203.07,2.9968]
[1738531922678,0.89610447,203.26,203.07,2.9968]
[1738531922870,0.89610447,203.26,203.1,41.2577616]
[1738531923573,0.03244189,203.2,203.16,0.03404049]
[1738531926380,4.9225,203.18,203.16,0.03404049]
[1738531926581,0.03244189,203.2,203.16,0.03404049]
[1738531927682,0.03244189,203.2,203.07,2.9968]
[1738531927880,41.29020349,203.2,203.02,41.2577616]
[1738531928081,4.9233,203.15,203.02,41.2577616]
[1738531928283,4.6,203.18,203.02,41.2577616]
[1738531928778,41.2577616,203.24,203.02,41.2577616]
[1738531929083,0.03739506,203.12,203.08,0.03459996]
[1738531929479,4.58,203.27,203.06,41.2577616]
[1738531929977,47.0874616,203.28,203.1,41.2577616]
[1738531930184,5.8297,203.28,203.14,41.2577616]
[1738531930379,5.8297,203.28,203.11,3.1205]
[1738531930680,4.9213,203.23,203.11,3.1205]
[1738531930882,5.8297,203.28,203.11,3.1205]
[1738531931082,0.03163317,203.19,203.15,0.0348385]
[1738531931583,47.0874616,203.28,203.11,3.1205]
[1738531931777,0.03632889,203.19,203.15,0.03466815]
[1738531932180,0.89564805,203.27,202.97,2.9754]
[1738531932181,41.2577616,203.24,203.01,41.2577616]
[1738531932385,0.03160172,203.19,203.15,0.03350968]
[1738531932685,41.2577616,203.16,202.97,44.2331616]
[1738531932881,3.0923,203.15,202.93,102.00682676]
[1738531933186,0.89616693,203.14,202.94,3.0645]
[1738531933486,9.2035,203.15,202.98,95.61104281]
[1738531933685,4.9242,203.12,202.98,95.61104281]
[1738531933878,0.03241625,203.06,203.02,0.03280369]
[1738531934383,4.58,203.19,203.02,41.2577616]
[1738531934583,4.58,203.19,203.06,41.2577616]
[1738531935583,0.03672659,203.15,203.1,0.037668]
[1738531935979,6.1112,203.27,203.1,0.037668]
[1738531936183,0.03724463,203.15,203.1,41.2954296]
[1738531936386,0.03724463,203.15,203.1,41.2577616]
[1738531936582,3.0334,203.26,203.1,41.2577616]
[1738531936787,0.03758033,203.15,203.1,41.29344974]
[1738531936987,0.03758033,203.15,203.1,41.2577616]
[1738531937188,3.0334,203.26,203.14,41.2577616]
[1738531937788,3.0334,203.26,203.1,41.2577616]
[1738531938283,4.9217,203.22,203.1,41.2577616]
[1738531938480,3.0334,203.26,203.16,0.03645239]
[1738531938877,41.2577616,203.32,203.16,0.03645239]
[1738531939083,2.9757,203.31,203.16,0.03645239]
[1738531939286,0.89550715,203.3,203.1,41.2577616]
[1738531939480,4.9202,203.28,203.21,0.03315461]
[1738531939679,2.9757,203.31,203.21,0.03315461]
[1738531939879,0.89552148,203.3,203.21,0.03315461]
[1738531940278,4.9215,203.22,203.21,0.03315461]
[1738531940891,4.92,203.28,203.21,0.03315461]
[1738531941080,2.9757,203.31,203.21,0.03315461]
[1738531941279,41.2577616,203.28,203.21,0.03315461]
[1738531941483,4.9215,203.22,203.21,0.03315461]
[1738531941682,4.9215,203.22,203.07,5.948]
[1738531941881,41.2577616,203.2,203.02,41.2577616]
[1738531942085,4.52,203.19,202.98,50.2589616]
[1738531942390,41.2577616,203.16,202.98,2.908]
[1738531942787,0.89620006,203.15,202.98,2.908]
[1738531942984,0.03259457,203.09,203.05,0.0367427]
[1738531943585,0.03259457,203.09,202.94,54.35328121]
[1738531943991,0.89622898,203.11,202.94,54.35328121]
[1738531944491,0.89622898,203.11,202.94,95.61104281]
[1738531944690,41.2577616,203.17,202.98,41.2577616]
[1738531944691,4.52,203.13,202.98,41.2577616]
[1738531944888,0.03668335,203.05,203.0,0.0362347]
[1738531945191,0.03668335,203.05,202.98,41.2577616]
[1738531945597,0.03668335,203.05,202.99,0.03704497]
[1738531946191,6.1905,203.21,203.02,41.2577616]
[1738531946401,0.89602086,203.2,203.03,3.0646]
[1738531946797,4.9239,203.12,203.03,3.0646]
[1738531947094,7.4298,203.2,203.06,41.2577616]
[1738531947289,4.9232,203.15,203.06,41.2577616]
[1738531947495,0.03334062,203.1,203.06,41.2577616]
[1738531947895,0.03334062,203.1,203.06,43.2177616]
[1738531948701,0.03334062,203.1,203.06,1.96]
[1738531950504,0.03334062,203.1,202.9,50.4972616]
[1738531950899,3.0861,203.12,202.9,50.4972616]
[1738531951096,41.2577616,203.09,202.9,9.2395]
[1738531951302,4.9272,202.99,202.9,9.2395]
[1738531951505,0.03644136,203.02,202.97,0.03150316]
[1738531951804,13.2334,203.08,202.9,3.0684]
[1738531952109,0.03667755,203.02,202.97,0.03120093]
[1738531953212,4.9273,202.98,202.97,0.03120093]
[1738531953903,0.03667755,203.02,202.97,0.03120093]
[1738531956008,4.9272,202.99,202.97,0.03120093]
[1738531956509,0.03667755,203.02,202.97,0.03120093]
[1738531956712,4.9268,203.01,202.97,0.03120093]
[1738531956905,0.03667755,203.02,202.97,41.28896253]
[1738531957599,0.03667755,203.02,202.97,0.03120093]
[1738531958207,4.47667755,203.02,202.97,0.03120093]
[1738531958407,4.9273,202.98,202.97,0.03120093]
[1738531958604,4.9273,202.98,202.85,41.2577616]
[1738531958805,4.47667755,203.02,202.79,54.35328121]
[1738531958806,41.2577616,203.01,202.81,41.2577616]
[1738531959011,4.44,203.02,202.85,41.2577616]
[1738531959208,4.44,203.02,202.86,3.1493]
[1738531959512,3.1178,203.04,202.89,41.2577616]
[1738531959713,3.1178,203.04,202.9,2.9066]
[1738531959915,4.44,203.1,202.93,41.2577616]
[1738531960118,0.03244558,202.99,202.97,41.2577616]
[1738531960311,5.9782,203.12,202.93,41.2577616]
[1738531960510,4.9245,203.1,202.97,41.2577616]
[1738531960712,0.03358454,203.0,202.98,3.1493]
[1738531960913,2.8921,203.12,202.98,3.1493]
[1738531961310,0.03733599,203.01,202.98,3.1493]
[1738531961817,2.8921,203.12,202.98,3.1493]
[1738531962014,0.03346766,203.02,202.98,3.1493]
[1738531962310,2.8921,203.12,202.98,3.1493]
[1738531962712,0.03762606,203.02,202.98,3.1841668]
[1738531963218,4.924,203.12,203.01,41.2577616]
[1738531963411,0.03306147,203.02,203.01,41.2577616]
[1738531963612,2.8908,203.2,203.01,41.2577616]
[1738531963808,2.8908,203.2,203.05,41.2577616]
[1738531963809,0.89611614,203.19,203.05,41.2577616]
[1738531964013,2.8908,203.2,203.05,41.2577616]
[1738531964315,4.921,203.25,203.09,41.2577616]
[1738531964517,19.82322098,203.27,203.1,3.1489]
[1738531964712,19.82322098,203.27,203.13,41.2577616]
[1738531964909,0.03770359,203.19,203.15,0.03391543]
[1738531965607,19.82322098,203.27,203.15,0.03391543]
[1738531966611,6.1252,203.31,203.17,41.2577616]
[1738531966612,11.0447,203.31,203.17,41.2577616]
[1738531966819,0.03624,203.23,203.17,41.2577616]
[1738531967415,0.03624,203.23,203.18,0.03483014]
[1738531967914,42.04543314,203.43,203.21,41.2577616]
[1738531968116,4.9178,203.38,203.25,41.2577616]
[1738531968311,2.9775,203.41,203.25,41.2577616]
[1738531968516,0.89519047,203.4,203.25,41.2577616]
[1738531969018,0.89519047,203.4,203.3,0.03152963]
[1738531969214,4.9181,203.36,203.3,0.03152963]
[1738531969415,41.2577616,203.39,203.3,0.03152963]
[1738531969915,0.89514107,203.38,203.3,0.03152963]
[1738531970320,41.2577616,203.35,203.13,41.2577616]
[1738531970520,41.2577616,203.31,203.13,41.2577616]
[1738531970724,4.38,203.3,203.12,2.9109]
[1738531971018,4.38,203.3,203.13,41.2577616]
[1738531971217,2.877,203.38,203.17,41.2577616]
[1738531971423,0.89520349,203.37,203.17,41.2577616]
[1738531971612,0.03152963,203.24,203.19,0.03113777]
[1738531971923,0.03152963,203.24,203.12,2.9109]
[1738531971924,2.877,203.38,203.21,41.2577616]
[1738531972121,4.9179,203.37,203.21,41.2577616]
[1738531972315,2.877,203.38,203.21,41.2577616]
[1738531973024,4.9188,203.33,203.27,0.03752893]
[1738531973223,2.877,203.38,203.27,0.03752893]
[1738531973426,41.2577616,203.43,203.27,0.03752893]
[1738531973622,4.9172,203.4,203.27,0.03752893]
[1738531973919,7.217,203.48,203.26,8.9194]
[1738531973920,41.2577616,203.47,203.26,8.9194]
[1738531974125,4.9167,203.42,203.31,0.03609331]
[1738531974324,41.2577616,203.47,203.31,0.03609331]
[1738531974523,0.89496022,203.46,203.26,8.9194]
[1738531974722,0.89496022,203.46,203.37,0.03258209]
[1738531975627,41.2577616,203.43,203.37,0.03258209]
[1738531976025,4.9176,203.38,203.37,0.03258209]
[1738531976220,41.2577616,203.39,203.26,3.007]
[1738531976627,41.2577616,203.43,203.26,3.007]
[1738531976825,0.89496823,203.42,203.26,3.007]
[1738531977025,41.2577616,203.43,203.27,3.0659]